{"text_format":"1","workbook":"xlsx","n_sheets":1,"sheets":["Indice Electrónico"],"not_rendered":{"charts":0,"images":2,"macros":1,"external_links":0,"defined_names":7,"comments":0,"pivot_tables":0},"unopened":[],"bounds":{"document_bytes":16777216,"sheet_cells":100000,"rows_first":2000,"rows_last":500,"rows_between":2000,"halvings":0,"cell_chars":16384,"cell_head_chars":4096},"cells_cut":0,"cells_raw":0,"read":"whole","date_system":"1900"}

{"sheet":"Indice Electrónico","index":0,"n_rows":36,"n_cols":11,"rows_kept":36,"cut":false,"hidden":false,"merged":[[30,2,30,10],[1,1,1,5],[2,1,2,5],[3,1,3,5],[0,0,0,10],[4,1,4,5],[5,1,5,5],[6,1,6,5],[1,7,1,10],[4,7,5,8],[4,9,5,10],[6,7,6,8],[6,9,6,10],[2,7,3,8],[2,9,3,10]]}
["ÍNDICE DEL EXPEDIENTE JUDICIAL ELECTRÓNICO"]
["Ciudad","CALI",null,null,null,null,null,"EXPEDIENTE FÍSICO"]
["Despacho Judicial","JUZGADO 07 LABORAL DEL CIRCUITO",null,null,null,null,null,"El expediente judicial posee documentos físicos:",null,"SI____     NO ___X_"]
["Serie o Subserie Documental","ORDINARIO LABORAL DE PRIMERA INSTANCIA"]
["No. Radicación del Proceso","76001310500720240000500-",null,null,null,null,null,"No. de carpetas, legajos o tomos:"]
["Partes Procesales (Parte A)\n(demandado, procesado, accionado)","COLPENSIONES EICE, PORVENIR SA, COLOFONDOS SA, SKANDIA SA"]
["Partes Procesales (Parte B)\n(demandante, denunciante, accionante)","ALMA ROSANDRA BARRAGAN GUERRERO"]
[]
["Nombre Documento","Fecha Creación Documento","Fecha Incorporación Expediente","Orden Documento ","Número Páginas","Página Inicio","Página \nFin","Formato","Tamaño","Origen","Observaciones"]
["01ActaReparto20230000500.","2024-01-12","2024-01-12",1,7,{"$f":"+IF(E10=0,\"0\",\"1\")","v":"1"},{"$f":"+F10+(E10-F10)","v":7},"PDF","845 KB","ELECTRONICO"]
["02Demandaanexos20240000500","2024-01-12","2024-01-12",2,132,{"$f":"+IF(E11=0,\"0\",(1+G10))","v":8},{"$f":"+F11+(E11-1)","v":139},"PDF","17,7 MB","ELECTRONICO"]
[null,null,null,3,null,{"$f":"+IF(E12=0,\"0\",(1+G11))","v":"0"},{"$f":"+F12+(E12-1)","v":-1},"PDF",null,"ELECTRONICO"]
[null,null,null,4,null,"0",-1,"PDF",null,"ELECTRONICO"]
[null,null,null,5,null,"0",-1,"PDF",null,"ELECTRONICO"]
[null,null,null,6,null,"0",-1,"PDF",null,"ELECTRONICO"]
[null,null,null,7,null,"0",-1,"PDF",null,"ELECTRONICO"]
[null,null,null,8,null,"0",-1,"PDF",null,"ELECTRONICO"]
[null,null,null,9,null,"0",-1,"PDF",null,"ELECTRONICO"]
[null,null,null,10,null,"0",-1,"PDF",null,"ELECTRONICO"]
[null,null,null,11,null,"0",-1,"PDF",null,"ELECTRONICO"]
[null,null,null,12,null,"0",-1,"PDF",null,"ELECTRONICO"]
[null,null,null,13,null,"0",-1,"PDF",null,"ELECTRONICO"]
[null,null,null,14,null,"0",-1,"PDF",null,"ELECTRONICO"]
[null,null,null,15,null,"0",-1,"PDF",null,"ELECTRONICO"]
[null,null,null,16,null,"0",-1,"PDF",null,"ELECTRONICO"]
[null,null,null,17,null,"0",-1,"PDF",null,"ELECTRONICO"]
[null,null,null,18,null,"0",-1,"PDF",null,"ELECTRONICO"]
[null,null,null,19,null,"0",-1,"PDF",null,"ELECTRONICO"]
[null,null,null,20,null,"0",-1,"PDF",null,"ELECTRONICO"]
[null,null,null,21,null,"0",-1,"PDF",null,"ELECTRONICO"]
[null,"2023-06-08"]
[]
[]
[]
["SANDRA PATRICIA IDROBO COORES"]
["Secretaria"]